[Event "Early-Titled-Tuesday-Blitz-May-14-2024"]
[Site "Chess.com"]
[Date "2024.05.14"]
[Round "2"]
[White "chess_blitz00"]
[Black "cmunda"]
[Result "1-0"]
[WhiteElo "2476"]
[BlackElo "2143"]
[TimeControl "180+1"]
[EndTime "8:13:50 PDT"]
[Termination "chess_blitz00 won by checkmate"]

1. Nc3 {[%clk 0:03:00.9]} 1... g6 {[%clk 0:02:56.3]} 2. d4 {[%clk 0:03:01.8]}
2... Bg7 {[%clk 0:02:56.5]} 3. e4 {[%clk 0:03:02.4]} 3... d6 {[%clk 0:02:56.5]}
4. Nf3 {[%clk 0:02:55.4]} 4... Nf6 {[%clk 0:02:56.6]} 5. Be3 {[%clk 0:02:51.8]}
5... O-O {[%clk 0:02:56.4]} 6. Qd2 {[%clk 0:02:52.4]} 6... Ng4 {[%clk
0:02:56.3]} 7. O-O-O {[%clk 0:02:53.3]} 7... Nxe3 {[%clk 0:02:56.3]} 8. fxe3
{[%clk 0:02:53.4]} 8... c6 {[%clk 0:02:51.7]} 9. Bd3 {[%clk 0:02:53.9]} 9... b5
{[%clk 0:02:51.6]} 10. h4 {[%clk 0:02:54.2]} 10... h5 {[%clk 0:02:49]} 11. Ne2
{[%clk 0:02:52.6]} 11... Nd7 {[%clk 0:02:42.5]} 12. g4 {[%clk 0:02:42.8]} 12...
Nf6 {[%clk 0:02:39.2]} 13. gxh5 {[%clk 0:02:41.4]} 13... Nxh5 {[%clk 0:02:39]}
14. Nf4 {[%clk 0:02:41.2]} 14... Bg4 {[%clk 0:02:35.2]} 15. Qg2 {[%clk 0:02:39]}
15... Qd7 {[%clk 0:02:31.2]} 16. Rdg1 {[%clk 0:02:37.2]} 16... Nxf4 {[%clk
0:02:17.9]} 17. exf4 {[%clk 0:02:36]} 17... Bxf3 {[%clk 0:02:18]} 18. Qxf3
{[%clk 0:02:36.9]} 18... Bxd4 {[%clk 0:02:17.9]} 19. Rg2 {[%clk 0:02:32.1]}
19... c5 {[%clk 0:02:11.9]} 20. h5 {[%clk 0:02:29.9]} 20... c4 {[%clk
0:02:11.8]} 21. hxg6 {[%clk 0:02:29.4]} 21... fxg6 {[%clk 0:01:52.9]} 22. Rxg6+
{[%clk 0:02:29.7]} 22... Bg7 {[%clk 0:01:53.1]} 23. Qh5 {[%clk 0:02:26.3]} 23...
Rf7 {[%clk 0:01:46.7]} 24. Qh7+ {[%clk 0:02:24.1]} 24... Kf8 {[%clk 0:01:46.4]}
25. Qh8+ {[%clk 0:02:24.8]} 25... Bxh8 {[%clk 0:01:43.3]} 26. Rxh8# {[%clk
0:02:25.7]} 1-0

[Event "Early-Titled-Tuesday-Blitz-May-14-2024"]
[Site "Chess.com"]
[Date "2024.05.14"]
[Round "2"]
[White "fen_fire"]
[Black "Anu-triz"]
[Result "1-0"]
[WhiteElo "2519"]
[BlackElo "2264"]
[TimeControl "180+1"]
[EndTime "8:14:17 PDT"]
[Termination "fen_fire won by resignation"]

1. e4 {[%clk 0:02:39.8]} 1... e5 {[%clk 0:02:57.9]} 2. Nf3 {[%clk 0:02:34.7]}
2... Nc6 {[%clk 0:02:57.2]} 3. Nc3 {[%clk 0:02:34.5]} 3... Nf6 {[%clk
0:02:56.3]} 4. Nd5 {[%clk 0:02:34.3]} 4... Bc5 {[%clk 0:02:43.6]} 5. c3 {[%clk
0:02:32.9]} 5... d6 {[%clk 0:02:32.1]} 6. d4 {[%clk 0:02:30.1]} 6... exd4 {[%clk
0:02:31.8]} 7. cxd4 {[%clk 0:02:30]} 7... Bb4+ {[%clk 0:02:28.8]} 8. Nxb4 {[%clk
0:02:28.9]} 8... Nxb4 {[%clk 0:02:29.7]} 9. Qa4+ {[%clk 0:02:24.5]} 9... Nc6
{[%clk 0:02:25]} 10. d5 {[%clk 0:02:24.7]} 10... Bd7 {[%clk 0:02:25.1]} 11. dxc6
{[%clk 0:02:23.7]} 11... Bxc6 {[%clk 0:02:26]} 12. Bb5 {[%clk 0:02:22.9]} 12...
O-O {[%clk 0:02:19.8]} 13. Bxc6 {[%clk 0:02:21.9]} 13... bxc6 {[%clk 0:02:20.7]}
14. O-O {[%clk 0:02:21.7]} 14... c5 {[%clk 0:02:17.5]} 15. Bg5 {[%clk
0:02:19.5]} 15... h6 {[%clk 0:01:49.2]} 16. Bh4 {[%clk 0:02:19.2]} 16... g5
{[%clk 0:01:41.2]} 17. Bg3 {[%clk 0:02:18.9]} 17... Re8 {[%clk 0:01:41.2]} 18.
e5 {[%clk 0:02:18.7]} 18... Nh5 {[%clk 0:01:34.1]} 19. Rfd1 {[%clk 0:02:11.2]}
1-0

[Event "Early-Titled-Tuesday-Blitz-May-14-2024"]
[Site "Chess.com"]
[Date "2024.05.14"]
[Round "2"]
[White "Savagelittlemole"]
[Black "LamaChampetre"]
[Result "0-1"]
[WhiteElo "2471"]
[BlackElo "2208"]
[TimeControl "180+1"]
[EndTime "8:14:18 PDT"]
[Termination "LamaChampetre won by resignation"]

1. d4 {[%clk 0:02:59.1]} 1... Nf6 {[%clk 0:02:51.8]} 2. Bg5 {[%clk 0:02:58.8]}
2... d5 {[%clk 0:02:48.6]} 3. Bxf6 {[%clk 0:02:58.8]} 3... gxf6 {[%clk
0:02:49.1]} 4. e3 {[%clk 0:02:57]} 4... c5 {[%clk 0:02:49.3]} 5. Ne2 {[%clk
0:02:56.7]} 5... Nc6 {[%clk 0:02:49.4]} 6. c4 {[%clk 0:02:55.5]} 6... cxd4
{[%clk 0:02:43.8]} 7. Nxd4 {[%clk 0:02:53]} 7... e5 {[%clk 0:02:43.5]} 8. cxd5
{[%clk 0:02:44.7]} 8... Bb4+ {[%clk 0:02:07.5]} 9. Nc3 {[%clk 0:02:42.8]} 9...
exd4 {[%clk 0:02:07.1]} 10. exd4 {[%clk 0:02:14.2]} 10... Qxd5 {[%clk
0:01:59.3]} 11. Qa4 {[%clk 0:01:59.5]} 11... Qxd4 {[%clk 0:01:47.8]} 12. Bb5
{[%clk 0:01:46.2]} 12... Bxc3+ {[%clk 0:01:45.7]} 13. bxc3 {[%clk 0:01:47.1]}
13... Qxa4 {[%clk 0:01:45.7]} 14. Bxa4 {[%clk 0:01:46.7]} 14... Be6 {[%clk
0:01:43.8]} 15. O-O {[%clk 0:01:43.5]} 15... O-O {[%clk 0:01:42.8]} 16. Rfb1
{[%clk 0:01:41.4]} 16... Na5 {[%clk 0:01:42.5]} 17. Rxb7 {[%clk 0:01:40.2]}
17... Nxb7 {[%clk 0:01:41.8]} 0-1

[Event "Early-Titled-Tuesday-Blitz-May-14-2024"]
[Site "Chess.com"]
[Date "2024.05.14"]
[Round "2"]
[White "DrVelja"]
[Black "Nf3c5"]
[Result "1-0"]
[WhiteElo "2960"]
[BlackElo "2640"]
[TimeControl "180+1"]
[EndTime "8:14:26 PDT"]
[Termination "DrVelja won by resignation"]

1. e4 {[%clk 0:03:00.9]} 1... c5 {[%clk 0:02:57.2]} 2. Nf3 {[%clk 0:03:00.9]}
2... Nc6 {[%clk 0:02:57.3]} 3. Bb5 {[%clk 0:03:00.5]} 3... Na5 {[%clk
0:02:55.4]} 4. O-O {[%clk 0:02:59.6]} 4... a6 {[%clk 0:02:54.8]} 5. Be2 {[%clk
0:02:59.8]} 5... e6 {[%clk 0:02:54.1]} 6. c4 {[%clk 0:02:59.7]} 6... Nc6 {[%clk
0:02:50.4]} 7. d4 {[%clk 0:02:59.4]} 7... cxd4 {[%clk 0:02:50.3]} 8. Nxd4 {[%clk
0:03:00.3]} 8... Qc7 {[%clk 0:02:44]} 9. Nc3 {[%clk 0:02:59.5]} 9... Nf6 {[%clk
0:02:43.2]} 10. Be3 {[%clk 0:02:58.4]} 10... Bb4 {[%clk 0:02:22]} 11. f3 {[%clk
0:02:43.9]} 11... h5 {[%clk 0:02:01.4]} 12. Rc1 {[%clk 0:02:42.7]} 12... Ne5
{[%clk 0:02:01.5]} 13. a3 {[%clk 0:02:36.9]} 13... Be7 {[%clk 0:01:56.2]} 14. c5
{[%clk 0:02:14.5]} 14... b6 {[%clk 0:01:02.4]} 15. b4 {[%clk 0:02:11.8]} 15...
Qxc5 {[%clk 0:01:01.8]} 16. bxc5 {[%clk 0:02:12.7]} 1-0

[Event "Early-Titled-Tuesday-Blitz-May-14-2024"]
[Site "Chess.com"]
[Date "2024.05.14"]
[Round "2"]
[White "GM_dmitrij"]
[Black "DumbKing75"]
[Result "1-0"]
[WhiteElo "3028"]
[BlackElo "2656"]
[TimeControl "180+1"]
[EndTime "8:15:00 PDT"]
[Termination "GM_dmitrij won by resignation"]

1. c4 {[%clk 0:03:00.9]} 1... Nf6 {[%clk 0:02:59.1]} 2. Nc3 {[%clk 0:02:59.8]}
2... g6 {[%clk 0:02:58.7]} 3. d4 {[%clk 0:02:59.1]} 3... d6 {[%clk 0:02:57.7]}
4. e4 {[%clk 0:02:58.8]} 4... Bg7 {[%clk 0:02:57.5]} 5. Be2 {[%clk 0:02:59.4]}
5... O-O {[%clk 0:02:54.9]} 6. Be3 {[%clk 0:03:00.1]} 6... Nc6 {[%clk
0:02:55.2]} 7. d5 {[%clk 0:02:59.6]} 7... Ne5 {[%clk 0:02:54.9]} 8. h3 {[%clk
0:02:59.2]} 8... e6 {[%clk 0:02:50.6]} 9. Nf3 {[%clk 0:02:58.9]} 9... Nxf3+
{[%clk 0:02:44.2]} 10. Bxf3 {[%clk 0:02:59.8]} 10... Nd7 {[%clk 0:02:44.5]} 11.
O-O {[%clk 0:02:58.4]} 11... Bxc3 {[%clk 0:02:22.6]} 12. bxc3 {[%clk 0:02:59.3]}
12... Nc5 {[%clk 0:02:20.4]} 13. e5 {[%clk 0:02:54.9]} 13... Re8 {[%clk
0:02:00.9]} 14. Qd2 {[%clk 0:02:41]} 14... exd5 {[%clk 0:01:52.3]} 15. Bg5
{[%clk 0:02:39.9]} 15... Qd7 {[%clk 0:01:51.5]} 16. Bf6 {[%clk 0:02:39.2]} 16...
dxc4 {[%clk 0:00:39.6]} 17. Qh6 {[%clk 0:02:31.5]} 17... Ne6 {[%clk 0:00:40.1]}
18. Rfe1 {[%clk 0:02:31.5]} 18... d5 {[%clk 0:00:38.1]} 19. Rad1 {[%clk
0:02:31.5]} 19... c6 {[%clk 0:00:37.9]} 20. Rd4 {[%clk 0:02:31.7]} 1-0

[Event "Early-Titled-Tuesday-Blitz-May-14-2024"]
[Site "Chess.com"]
[Date "2024.05.14"]
[Round "2"]
[White "Vasily_IM"]
[Black "praveenb2002"]
[Result "0-1"]
[WhiteElo "2594"]
[BlackElo "2866"]
[TimeControl "180+1"]
[EndTime "8:15:17 PDT"]
[Termination "praveenb2002 won by resignation"]

1. d4 {[%clk 0:02:59.1]} 1... Nf6 {[%clk 0:02:58.3]} 2. c4 {[%clk 0:02:58.3]}
2... g6 {[%clk 0:02:58.6]} 3. Nc3 {[%clk 0:02:58.2]} 3... d5 {[%clk 0:02:57.2]}
4. Bg5 {[%clk 0:02:57.9]} 4... Ne4 {[%clk 0:02:51.4]} 5. Bh4 {[%clk 0:02:57.8]}
5... Nxc3 {[%clk 0:02:47.3]} 6. bxc3 {[%clk 0:02:58.7]} 6... dxc4 {[%clk
0:02:48]} 7. e3 {[%clk 0:02:58.5]} 7... Be6 {[%clk 0:02:47.4]} 8. Qb1 {[%clk
0:02:58.3]} 8... c5 {[%clk 0:02:36.6]} 9. Qxb7 {[%clk 0:02:57.4]} 9... Bd5
{[%clk 0:02:36.6]} 10. Qb5+ {[%clk 0:02:55.8]} 10... Qd7 {[%clk 0:02:36.4]} 11.
Rb1 {[%clk 0:02:54.7]} 11... Qxb5 {[%clk 0:02:23.8]} 12. Rxb5 {[%clk 0:02:54]}
12... e6 {[%clk 0:02:24.5]} 13. Bf6 {[%clk 0:02:25.8]} 13... Rg8 {[%clk
0:02:22.1]} 14. Nf3 {[%clk 0:02:25.1]} 14... Nd7 {[%clk 0:02:16.1]} 15. Bh4
{[%clk 0:02:23.5]} 15... a6 {[%clk 0:02:04.3]} 16. Rb2 {[%clk 0:02:08]} 16...
cxd4 {[%clk 0:02:02.7]} 17. cxd4 {[%clk 0:01:44.5]} 17... c3 {[%clk 0:01:45.8]}
18. Rc2 {[%clk 0:01:37]} 18... Be4 {[%clk 0:01:44.8]} 0-1

[Event "Early-Titled-Tuesday-Blitz-May-14-2024"]
[Site "Chess.com"]
[Date "2024.05.14"]
[Round "2"]
[White "pirulillo"]
[Black "elcala"]
[Result "1-0"]
[WhiteElo "2437"]
[BlackElo "1840"]
[TimeControl "180+1"]
[EndTime "8:15:24 PDT"]
[Termination "pirulillo won by resignation"]

1. e4 {[%clk 0:03:00.1]} 1... e5 {[%clk 0:02:51.5]} 2. Bc4 {[%clk 0:02:59.5]}
2... Nc6 {[%clk 0:02:51]} 3. d3 {[%clk 0:02:59.5]} 3... Bc5 {[%clk 0:02:50.7]}
4. Nc3 {[%clk 0:02:59.3]} 4... Nf6 {[%clk 0:02:49.6]} 5. f4 {[%clk 0:02:59.2]}
5... exf4 {[%clk 0:02:46.1]} 6. Bxf4 {[%clk 0:02:57.3]} 6... h6 {[%clk
0:02:45.4]} 7. Nf3 {[%clk 0:02:54.5]} 7... O-O {[%clk 0:02:44.9]} 8. Qd2 {[%clk
0:02:45.5]} 8... d6 {[%clk 0:02:29.5]} 9. O-O-O {[%clk 0:02:39.1]} 9... Bg4
{[%clk 0:02:25.6]} 10. Rdf1 {[%clk 0:02:37.3]} 10... Nd4 {[%clk 0:02:20.1]} 11.
Nxd4 {[%clk 0:02:27.5]} 11... Bxd4 {[%clk 0:02:19]} 12. Ne2 {[%clk 0:02:26]}
12... Be5 {[%clk 0:01:59]} 13. Ng3 {[%clk 0:02:18.5]} 13... Nh5 {[%clk
0:01:09.8]} 14. Nxh5 {[%clk 0:01:44.7]} 14... Bxh5 {[%clk 0:01:06.8]} 15. Bxh6
{[%clk 0:01:43.2]} 15... gxh6 {[%clk 0:00:59.8]} 16. Qxh6 {[%clk 0:01:44.1]}
16... Bg6 {[%clk 0:00:56.9]} 17. Qxg6+ {[%clk 0:01:42.5]} 17... Bg7 {[%clk
0:00:54]} 18. Rxf7 {[%clk 0:01:39.3]} 18... Rxf7 {[%clk 0:00:51.3]} 19. Bxf7+
{[%clk 0:01:40.2]} 19... Kh8 {[%clk 0:00:50.9]} 20. Qh5+ {[%clk 0:01:39.4]} 1-0

[Event "Early-Titled-Tuesday-Blitz-May-14-2024"]
[Site "Chess.com"]
[Date "2024.05.14"]
[Round "2"]
[White "TreinadorBR"]
[Black "MasterKroket"]
[Result "0-1"]
[WhiteElo "2314"]
[BlackElo "2545"]
[TimeControl "180+1"]
[EndTime "8:15:25 PDT"]
[Termination "MasterKroket won by resignation"]

1. e4 {[%clk 0:02:48.1]} 1... e5 {[%clk 0:02:59]} 2. Nf3 {[%clk 0:02:44.1]} 2...
Nc6 {[%clk 0:02:59.4]} 3. Bc4 {[%clk 0:02:44.7]} 3... Bc5 {[%clk 0:02:59.2]} 4.
c3 {[%clk 0:02:45.2]} 4... Nf6 {[%clk 0:02:59.5]} 5. d3 {[%clk 0:02:43.6]} 5...
a6 {[%clk 0:02:59.9]} 6. Bb3 {[%clk 0:02:41.9]} 6... h6 {[%clk 0:02:59.5]} 7.
Nbd2 {[%clk 0:02:39.3]} 7... O-O {[%clk 0:02:59.6]} 8. h3 {[%clk 0:02:32.9]}
8... d5 {[%clk 0:02:59.6]} 9. Qe2 {[%clk 0:02:32.6]} 9... Be6 {[%clk 0:02:55.8]}
10. Nf1 {[%clk 0:02:31.6]} 10... Qd7 {[%clk 0:02:53.6]} 11. Ng3 {[%clk 0:02:31]}
11... Rad8 {[%clk 0:02:43.7]} 12. Bc2 {[%clk 0:02:21.3]} 12... b5 {[%clk
0:02:36.6]} 13. O-O {[%clk 0:02:02]} 13... dxe4 {[%clk 0:02:36.1]} 14. Nxe4
{[%clk 0:02:02.9]} 14... Nxe4 {[%clk 0:02:36.2]} 15. Qxe4 {[%clk 0:02:02.9]}
15... Bd5 {[%clk 0:02:28.2]} 16. Nxe5 {[%clk 0:01:49.2]} 16... Qe6 {[%clk
0:02:24.7]} 17. Qg4 {[%clk 0:01:34.3]} 17... Nxe5 {[%clk 0:02:07.4]} 18. Qg3
{[%clk 0:01:30.2]} 18... Bd6 {[%clk 0:02:03.5]} 19. Bf4 {[%clk 0:01:22.8]} 19...
Ng6 {[%clk 0:01:59.8]} 20. Bxd6 {[%clk 0:01:19]} 20... Qxd6 {[%clk 0:02:00.1]}
21. Qxd6 {[%clk 0:01:14.8]} 21... Rxd6 {[%clk 0:02:01]} 22. d4 {[%clk
0:01:15.4]} 22... Nf4 {[%clk 0:01:59.2]} 23. Rfe1 {[%clk 0:01:14.7]} 23... Rdd8
{[%clk 0:01:57.5]} 24. g3 {[%clk 0:01:13.7]} 24... Nxh3+ {[%clk 0:01:57.2]} 25.
Kf1 {[%clk 0:01:14.1]} 25... Rde8 {[%clk 0:01:53.9]} 26. a4 {[%clk 0:01:10.9]}
26... Ng5 {[%clk 0:01:45.8]} 27. axb5 {[%clk 0:01:07.1]} 27... axb5 {[%clk
0:01:46.1]} 28. Ra7 {[%clk 0:01:07.3]} 28... Bg2+ {[%clk 0:01:42.7]} 29. Kxg2
{[%clk 0:01:05.1]} 29... Rxe1 {[%clk 0:01:43.3]} 30. Rxc7 {[%clk 0:01:04.9]}
30... Re2 {[%clk 0:01:43.4]} 0-1

[Event "Early-Titled-Tuesday-Blitz-May-14-2024"]
[Site "Chess.com"]
[Date "2024.05.14"]
[Round "2"]
[White "RandomNoob04"]
[Black "Eliwood44"]
[Result "1-0"]
[WhiteElo "2752"]
[BlackElo "2462"]
[TimeControl "180+1"]
[EndTime "8:15:37 PDT"]
[Termination "RandomNoob04 won by resignation"]

1. e4 {[%clk 0:03:00.9]} 1... e5 {[%clk 0:02:56.4]} 2. d4 {[%clk 0:03:01.1]}
2... exd4 {[%clk 0:02:54.9]} 3. Qxd4 {[%clk 0:03:02]} 3... Nc6 {[%clk 0:02:53]}
4. Qe3 {[%clk 0:03:02.6]} 4... Nf6 {[%clk 0:02:50.7]} 5. e5 {[%clk 0:03:03.2]}
5... Ng4 {[%clk 0:02:45.3]} 6. Qe4 {[%clk 0:03:03.8]} 6... d5 {[%clk 0:02:42.4]}
7. exd6+ {[%clk 0:03:04.7]} 7... Be6 {[%clk 0:02:38]} 8. Ba6 {[%clk 0:03:05.3]}
8... Qc8 {[%clk 0:02:28.2]} 9. Qxc6+ {[%clk 0:03:03]} 9... bxc6 {[%clk
0:02:27.9]} 10. Bxc8 {[%clk 0:03:03.9]} 10... Rxc8 {[%clk 0:02:28.3]} 11. dxc7
{[%clk 0:03:04.8]} 11... Bc5 {[%clk 0:02:28]} 12. Nh3 {[%clk 0:02:59.1]} 12...
O-O {[%clk 0:02:25.5]} 13. Bf4 {[%clk 0:02:53.6]} 13... Nf6 {[%clk 0:02:23.7]}
14. O-O {[%clk 0:02:52.7]} 14... Nd5 {[%clk 0:02:23]} 15. Bg3 {[%clk 0:02:53.4]}
15... Bxh3 {[%clk 0:02:22.5]} 16. gxh3 {[%clk 0:02:53.2]} 16... Bd4 {[%clk
0:02:22.1]} 17. c3 {[%clk 0:02:52.9]} 17... Bf6 {[%clk 0:02:22.3]} 18. Nd2
{[%clk 0:02:52]} 18... Nxc7 {[%clk 0:02:22.7]} 19. Ne4 {[%clk 0:02:52.4]} 19...
Nd5 {[%clk 0:02:20.2]} 20. c4 {[%clk 0:02:51.3]} 20... Nb4 {[%clk 0:02:18.3]}
21. Nxf6+ {[%clk 0:02:51.4]} 21... gxf6 {[%clk 0:02:19.2]} 22. Bd6 {[%clk
0:02:51.9]} 22... Nc2 {[%clk 0:02:18.7]} 23. Bxf8 {[%clk 0:02:35.8]} 23... Nxa1
{[%clk 0:02:18.6]} 24. Bh6 {[%clk 0:02:36.6]} 24... Nc2 {[%clk 0:02:17.5]} 25.
Kh1 {[%clk 0:02:37.3]} 25... Kh8 {[%clk 0:02:13.4]} 26. Rd1 {[%clk 0:02:21.9]}
26... Rg8 {[%clk 0:02:07.3]} 27. a3 {[%clk 0:02:10.5]} 27... Rg6 {[%clk
0:02:04.9]} 28. Rd8+ {[%clk 0:02:09.2]} 28... Rg8 {[%clk 0:02:04.5]} 29. Rd1
{[%clk 0:01:56.6]} 29... Rg6 {[%clk 0:02:02.8]} 30. Bf4 {[%clk 0:01:45.4]} 30...
c5 {[%clk 0:01:51.5]} 31. Bd6 {[%clk 0:01:40.1]} 31... Nd4 {[%clk 0:01:51.1]}
32. Bxc5 {[%clk 0:01:39.1]} 32... Nf3 {[%clk 0:01:48.8]} 33. Be3 {[%clk
0:01:36.1]} 33... a6 {[%clk 0:01:44.9]} 34. c5 {[%clk 0:01:36.1]} 34... Rg8
{[%clk 0:01:43.4]} 35. c6 {[%clk 0:01:30.2]} 35... Rc8 {[%clk 0:01:42.9]} 36.
Bh6 {[%clk 0:01:26.9]} 36... Ne5 {[%clk 0:01:41.7]} 37. c7 {[%clk 0:01:27.3]}
37... Nc6 {[%clk 0:01:39]} 38. Rd7 {[%clk 0:01:27.2]} 38... Kg8 {[%clk
0:01:36.4]} 39. b4 {[%clk 0:01:26.7]} 39... f5 {[%clk 0:01:36.2]} 40. a4 {[%clk
0:01:26.7]} 40... f6 {[%clk 0:01:34.4]} 41. b5 {[%clk 0:01:27]} 41... axb5
{[%clk 0:01:35]} 42. axb5 {[%clk 0:01:27.9]} 42... Ne5 {[%clk 0:01:34.6]} 43.
Rd8+ {[%clk 0:01:27.8]} 1-0

[Event "Early-Titled-Tuesday-Blitz-May-14-2024"]
[Site "Chess.com"]
[Date "2024.05.14"]
[Round "2"]
[White "Ariadna_Atreides"]
[Black "Aleksandar-Topalov"]
[Result "1-0"]
[WhiteElo "2243"]
[BlackElo "2488"]
[TimeControl "180+1"]
[EndTime "8:15:39 PDT"]
[Termination "Ariadna_Atreides won by checkmate"]

1. d4 {[%clk 0:03:00.9]} 1... e6 {[%clk 0:02:56]} 2. Nf3 {[%clk 0:02:59.9]} 2...
Nf6 {[%clk 0:02:55]} 3. e3 {[%clk 0:02:59.5]} 3... Be7 {[%clk 0:02:53.5]} 4. Bd3
{[%clk 0:03:00]} 4... O-O {[%clk 0:02:53.3]} 5. O-O {[%clk 0:03:00.2]} 5... b6
{[%clk 0:02:53.6]} 6. e4 {[%clk 0:02:57.6]} 6... d6 {[%clk 0:02:51]} 7. c3
{[%clk 0:02:54.3]} 7... Nbd7 {[%clk 0:02:48.8]} 8. Re1 {[%clk 0:02:53.6]} 8...
Bb7 {[%clk 0:02:48.7]} 9. a4 {[%clk 0:02:53.1]} 9... a6 {[%clk 0:02:48.1]} 10.
b4 {[%clk 0:02:51.4]} 10... e5 {[%clk 0:02:47.4]} 11. Qc2 {[%clk 0:02:41.3]}
11... Re8 {[%clk 0:02:43.4]} 12. Nbd2 {[%clk 0:02:39.3]} 12... Bf8 {[%clk
0:02:40.9]} 13. Nf1 {[%clk 0:02:39.1]} 13... exd4 {[%clk 0:02:23.1]} 14. cxd4
{[%clk 0:02:36.2]} 14... d5 {[%clk 0:02:14.4]} 15. e5 {[%clk 0:02:29.5]} 15...
Bxb4 {[%clk 0:02:13.6]} 16. Bd2 {[%clk 0:02:27.1]} 16... Bxd2 {[%clk 0:02:12]}
17. N1xd2 {[%clk 0:02:22.8]} 17... Nh5 {[%clk 0:01:57.2]} 18. Bxh7+ {[%clk
0:02:22]} 18... Kh8 {[%clk 0:01:55.5]} 19. Bf5 {[%clk 0:02:01.7]} 19... c5
{[%clk 0:01:28.8]} 20. e6 {[%clk 0:01:45]} 20... fxe6 {[%clk 0:01:23.6]} 21. Bg6
{[%clk 0:01:39.8]} 21... Nf4 {[%clk 0:01:11.8]} 22. Bxe8 {[%clk 0:01:37.8]}
22... Qxe8 {[%clk 0:01:11.9]} 23. Ng5 {[%clk 0:01:23.6]} 23... cxd4 {[%clk
0:00:57.2]} 24. Qh7# {[%clk 0:01:20.5]} 1-0

[Event "Early-Titled-Tuesday-Blitz-May-14-2024"]
[Site "Chess.com"]
[Date "2024.05.14"]
[Round "2"]
[White "TERMINATOR_PC"]
[Black "Dedic8"]
[Result "0-1"]
[WhiteElo "2606"]
[BlackElo "2896"]
[TimeControl "180+1"]
[EndTime "8:15:45 PDT"]
[Termination "Dedic8 won by resignation"]

1. e4 {[%clk 0:02:58.1]} 1... e5 {[%clk 0:02:59.7]} 2. Nf3 {[%clk 0:02:56.4]}
2... Nc6 {[%clk 0:03:00.3]} 3. Bc4 {[%clk 0:02:56.8]} 3... Nf6 {[%clk 0:03:00]}
4. d3 {[%clk 0:02:57.2]} 4... Be7 {[%clk 0:02:59.9]} 5. O-O {[%clk 0:02:57.3]}
5... O-O {[%clk 0:03:00.6]} 6. Re1 {[%clk 0:02:57.9]} 6... d6 {[%clk 0:03:00.9]}
7. a4 {[%clk 0:02:58.6]} 7... Be6 {[%clk 0:03:01.1]} 8. Nbd2 {[%clk 0:02:54.8]}
8... h6 {[%clk 0:02:50.6]} 9. h3 {[%clk 0:02:52.6]} 9... Qd7 {[%clk 0:02:47.9]}
10. Nf1 {[%clk 0:02:41.6]} 10... Bxc4 {[%clk 0:02:43.6]} 11. dxc4 {[%clk
0:02:41.6]} 11... a5 {[%clk 0:02:40.8]} 12. b3 {[%clk 0:02:41]} 12... Rfe8
{[%clk 0:02:32.4]} 13. Ng3 {[%clk 0:02:15.4]} 13... Bf8 {[%clk 0:02:32.5]} 14.
Be3 {[%clk 0:02:09.1]} 14... b6 {[%clk 0:02:28.8]} 15. Qd2 {[%clk 0:02:08.4]}
15... Kh7 {[%clk 0:02:27.9]} 16. Rad1 {[%clk 0:02:05.2]} 16... Rad8 {[%clk
0:02:27.8]} 17. Qe2 {[%clk 0:01:57.8]} 17... Qe6 {[%clk 0:02:26.1]} 18. Nh2
{[%clk 0:01:53]} 18... g6 {[%clk 0:02:24.9]} 19. h4 {[%clk 0:01:41.5]} 19... Bg7
{[%clk 0:02:07.2]} 20. h5 {[%clk 0:01:40.3]} 20... Rf8 {[%clk 0:02:06.3]} 21.
Bc1 {[%clk 0:01:34.1]} 21... Nd4 {[%clk 0:02:04.2]} 22. Qd3 {[%clk 0:01:33.8]}
22... Nxh5 {[%clk 0:01:50.2]} 23. Nxh5 {[%clk 0:01:28.4]} 23... gxh5 {[%clk
0:01:51.1]} 24. f4 {[%clk 0:01:23.5]} 24... exf4 {[%clk 0:01:48]} 25. Bxf4
{[%clk 0:01:22]} 25... Qg6 {[%clk 0:01:45.2]} 26. Rf1 {[%clk 0:01:17.9]} 26...
f5 {[%clk 0:01:39.7]} 27. exf5 {[%clk 0:01:15]} 27... Rxf5 {[%clk 0:01:40]} 28.
Rf2 {[%clk 0:01:00.9]} 28... Rdf8 {[%clk 0:01:38.8]} 29. Rdf1 {[%clk 0:01:01]}
29... Rxf4 {[%clk 0:01:34]} 0-1

[Event "Early-Titled-Tuesday-Blitz-May-14-2024"]
[Site "Chess.com"]
[Date "2024.05.14"]
[Round "2"]
[White "PapaieDudu"]
[Black "lcmil"]
[Result "1-0"]
[WhiteElo "2382"]
[BlackElo "2591"]
[TimeControl "180+1"]
[EndTime "8:15:56 PDT"]
[Termination "PapaieDudu won by resignation"]

1. e4 {[%clk 0:03:00.9]} 1... c5 {[%clk 0:02:59.8]} 2. Nf3 {[%clk 0:03:00.9]}
2... d6 {[%clk 0:03:00.5]} 3. d4 {[%clk 0:03:01.3]} 3... cxd4 {[%clk 0:03:01.4]}
4. Nxd4 {[%clk 0:03:02]} 4... Nf6 {[%clk 0:03:02.3]} 5. Nc3 {[%clk 0:03:02.7]}
5... g6 {[%clk 0:03:03.1]} 6. f3 {[%clk 0:03:03.4]} 6... Bg7 {[%clk 0:03:03.7]}
7. Be3 {[%clk 0:03:02.9]} 7... O-O {[%clk 0:03:04.6]} 8. Qd2 {[%clk 0:03:03.5]}
8... Nc6 {[%clk 0:03:04.5]} 9. O-O-O {[%clk 0:03:03.8]} 9... Bd7 {[%clk
0:03:05.2]} 10. Kb1 {[%clk 0:03:02.2]} 10... Rc8 {[%clk 0:03:05.3]} 11. g4
{[%clk 0:02:58.1]} 11... Ne5 {[%clk 0:03:05.5]} 12. h4 {[%clk 0:02:56.5]} 12...
Qa5 {[%clk 0:03:05.1]} 13. Nd5 {[%clk 0:02:41.9]} 13... Qxd2 {[%clk 0:02:56.4]}
14. Nxe7+ {[%clk 0:02:39]} 14... Kh8 {[%clk 0:02:56.1]} 15. Bxd2 {[%clk
0:02:21.3]} 15... Rce8 {[%clk 0:02:44.3]} 16. Nd5 {[%clk 0:02:00.6]} 16... Nxd5
{[%clk 0:02:44.2]} 17. exd5 {[%clk 0:02:00.6]} 17... Nxg4 {[%clk 0:02:45.1]} 18.
fxg4 {[%clk 0:01:56.5]} 18... Bxd4 {[%clk 0:02:34.7]} 19. Bh6 {[%clk 0:01:24.5]}
19... Bxg4 {[%clk 0:02:33.2]} 20. Rxd4 {[%clk 0:01:21.6]} 20... Re1+ {[%clk
0:02:32.5]} 21. Bc1 {[%clk 0:01:21.4]} 21... Bf3 {[%clk 0:02:31.4]} 22. Rg1
{[%clk 0:01:16.7]} 22... Rfe8 {[%clk 0:02:32]} 23. Rf4 {[%clk 0:01:02.1]} 23...
Rd1 {[%clk 0:02:25.9]} 24. Bb5 {[%clk 0:00:39.9]} 24... Rxg1 {[%clk 0:02:25.1]}
25. Bxe8 {[%clk 0:00:39.2]} 25... Bxd5 {[%clk 0:02:26]} 26. Bxf7 {[%clk
0:00:37.7]} 26... Bc6 {[%clk 0:02:26.7]} 27. Bc4 {[%clk 0:00:29.8]} 27... d5
{[%clk 0:02:25]} 28. Bd3 {[%clk 0:00:28.5]} 28... Kg7 {[%clk 0:02:25.2]} 29. c4
{[%clk 0:00:27.2]} 29... dxc4 {[%clk 0:02:25.2]} 30. Rxc4 {[%clk 0:00:26.5]}
30... Rd1 {[%clk 0:02:22.8]} 31. Bc2 {[%clk 0:00:23.2]} 31... Rh1 {[%clk
0:02:23]} 32. Be4 {[%clk 0:00:20.8]} 32... Bxe4+ {[%clk 0:02:21.1]} 33. Rxe4
{[%clk 0:00:20.6]} 33... Kf6 {[%clk 0:02:22]} 34. Kc2 {[%clk 0:00:20.3]} 34...
Kf5 {[%clk 0:02:22.2]} 35. Rb4 {[%clk 0:00:20.4]} 35... b6 {[%clk 0:02:21.9]}
36. Bg5 {[%clk 0:00:19.4]} 36... Rh2+ {[%clk 0:02:22.2]} 37. Kb3 {[%clk
0:00:19.5]} 37... Rh3+ {[%clk 0:02:23.1]} 38. Ka4 {[%clk 0:00:19.8]} 38... Rd3
{[%clk 0:02:23.2]} 39. a3 {[%clk 0:00:18.2]} 39... Rd5 {[%clk 0:02:23.4]} 40.
Rb5 {[%clk 0:00:18.4]} 40... Rxb5 {[%clk 0:02:23.6]} 41. Kxb5 {[%clk 0:00:19.3]}
1-0